Cogmind - Beta 13 @@@ ROGUE MODE // 2024.05.19 @ 16:23:23 Player: Jahimaih Green Turtle Result: Destroyed by D-53 Grenadier with Mini Grenade Launcher Performance ------------- Evolutions (0) 0 Regions Visited (2) 400 Robots Destroyed (19) 95 Value Destroyed (508) 508 Prototype IDs (2) 40 Alien Tech Used (0) 0 Bonus (0) 0 TOTAL SCORE: 1043 Bonus ------- None Cogmind --------- Core Integrity 0/250 Matter 228/300 Energy 100/100 System Corruption 0% Temperature Cool (0) Movement Core (200) Ox3 Location -10/Mines Parts ------- > --- POWER (1) -------- (None) > --- PROPULSION (2) --- (None) > --- UTILITY (2) ------ Medium Storage Unit Signal Interpreter > --- WEAPON (2) ------- Scythe > --- INVENTORY (10) --- Light Nuclear Core High-capacity Storage Unit Trap Scanner Seismic Detector Targeting Computer Hacking Suite Improved Trap Extractor (0/6) Light Cannon Improved Grenade Launcher Peak State ------------ > --- POWER ------------ Light Ion Engine > --- PROPULSION ------- Aluminum Leg Aluminum Leg > --- UTILITY ---------- Signal Interpreter Improved Trap Extractor > --- WEAPON ----------- Light Cannon Light Cannon > --- INVENTORY -------- Light Nuclear Core Aluminum Leg Medium Storage Unit Trap Scanner Hacking Suite [Rating: 11] Favorites ----------- Power Light Ion Engine Engine Light Ion Engine Power Core Light Nuclear Core Propulsion Aluminum Leg Leg Aluminum Leg Utility Medium Storage Unit Device Seismic Detector Storage Medium Storage Unit Processor Signal Interpreter Weapon Light Cannon Energy Gun Medium Laser Ballistic Gun Assault Rifle Ballistic Cannon Light Cannon Launcher Improved Grenade Launcher Slashing Weapon Scythe Build | -11 -10 -10 ------- Run | Yrd Mat Min Slots Evolved . | . . . Power . | . . . Propulsion . | . . . Utility . | . . . Weapon . | . . . Parts Attached 20 | 7 7 6 Power 3 | 1 2 . Engine 2 | 1 1 . Core 1 | . 1 . Reactor . | . . . Propulsion 3 | 2 . 1 Treads . | . . . Leg 3 | 2 . 1 Wheel . | . . . Hover . | . . . Flight . | . . . Utility 8 | 2 3 3 Device 4 | 1 1 2 Storage 3 | 1 1 1 Processor 1 | . 1 . Hackware . | . . . Protection . | . . . Artifact . | . . . Weapon 6 | 2 2 2 Energy Gun 1 | 1 . . Energy Cannon . | . . . Ballistic Gun 1 | 1 . . Ballistic Cannon 2 | . 2 . Launcher 1 | . . 1 Special Weapon . | . . . Impact Weapon . | . . . Slashing Weapon 1 | . . 1 Piercing Weapon . | . . . Special Melee Weapon . | . . . Unidentified Prototypes . | . . . Parts Lost 7 | . 2 5 Power 1 | . . 1 Propulsion 3 | . . 3 Utility 2 | . 2 . Weapon 1 | . . 1 Highest Loss Streak 5 | . 1 5 To Critical Strikes . | . . . Average Slot Usage (%) 93 | . 92 95 Engine 13 | . 13 12 Leg 27 | . 28 26 Device 3 | . 5 1 Storage 13 | . 14 12 Processor 6 | . 2 14 Energy Gun 1 | . 2 . Ballistic Gun 1 | . 2 . Ballistic Cannon 23 | . 22 25 Naked Turns . | . . . Heaviest Build 21 | 13 21 19 Greatest Support 20 | 20 20 20 Greatest Overweight (x) 3 | . 1 3 Average Overweight (x) . | . . . Largest Inventory Capacity 10 | 8 10 10 Average Capacity 9 | 7 9 9 Most Carried 10 | 7 10 10 Average Carried 8 | 4 8 8 Final Capacity 10 | 8 10 10 Final Carried 9 | 6 9 9 Class Distribution -------------------- 100% | Mutant Dominant Class ---------------- Mutant | -10/Materials Mutant | -10/Mines Resources | -11 -10 -10 ----------- Run | Yrd Mat Min Matter Collected 778 | 291 391 96 Remotely . | . . . Salvage Created 658 | 114 389 155 Parts 36 | 5 29 2 Haulers Intercepted 2 | . 2 . Recyclers Shooed . | . . . Parts Field Recycled . | . . . Retrieved Matter . | . . . Parts Self-Destructed . | . . . Prevented . | . . . Kills | -11 -10 -10 ------- Run | Yrd Mat Min Combat Hostiles Destroyed 27 | . 8 19 Melee 3 | . . 3 Guns 1 | . 1 . Cannons 9 | . 7 2 AOE 14 | . . 14 Classes Destroyed 8 | 2 5 1 Builder 1 | . 1 . Tunneler 1 | 1 . . Hauler 2 | . 2 . Recycler 1 | 1 . . Operator 1 | . 1 . Watcher 3 | . 3 . Grunt 10 | . 8 2 Assembled 17 | . . 17 Best Kill Streak 17 | 1 3 17 Combat Bots Only 17 | . 2 17 Max Kills in Single Turn 5 | 1 1 5 Gunslinging . | . . . Exploded 5 | . . 5 Melee 1 | . . 1 Uniques/NPCs Destroyed . | . . . Combat | -11 -10 -10 -------- Run | Yrd Mat Min Hostile Shots Fired 64 | . 20 44 Missed 18 | . 6 12 Damage Taken 895 | . 194 701 Core 258 | . 24 234 Absorbed by Shields . | . . . Core Remaining (%) 100 | 100 . . Volleys Fired 73 | 7 52 14 Largest 2 | 2 2 2 Hottest 71 | 70 70 71 Shots Fired 139 | 14 103 22 Gun 47 | 14 33 . Cannon 87 | . 70 17 Launcher 5 | . . 5 Special . | . . . Kinetic 111 | 7 87 17 Thermal 23 | 7 16 . Explosive 5 | . . 5 Electromagnetic . | . . . Robot Hit Streak 12 | 6 12 5 Robot Miss Streak 5 | 1 5 2 Penetration Max . | . . . Secondary Targets . | . . . Shots Hit Robots 94 | 12 64 18 Core Hits 49 | 3 19 27 Critical Kills . | . . . Critical Parts Destroyed . | . . . Critical Strikes 4 | 1 3 . Burn 2 | 1 1 . Blast 2 | . 2 . Melee Attacks 8 | . . 8 Impact . | . . . Slashing 8 | . . 8 Piercing . | . . . Sneak Attacks . | . . . Combat Hostiles . | . . . Follow-up Attacks . | . . . Damage Inflicted 2467 | 155 1078 1234 Guns 421 | 155 266 . Cannons 972 | . 812 160 Explosions 921 | . . 921 Melee 153 | . . 153 Ramming . | . . . Kinetic 1194 | 92 942 160 Thermal 199 | 63 136 . Explosive 921 | . . 921 Electromagnetic . | . . . Impact . | . . . Slashing 153 | . . 153 Piercing . | . . . Highest Corruption . | . . . Average Corruption . | . . . Corruption Purged . | . . . Corruption Blocked . | . . . Overload Shots . | . . . Overflow Damage 79 | . . 79 Projectiles . | . . . Explosions 44 | . . 44 Melee 35 | . . 35 Knockbacks 9 | . 8 1 Impact . | . . . Kinetic 9 | . 8 1 Secondary . | . . . Self-Inflicted Damage 78 | . . 78 Shots 2 | . . 2 Rammed . | . . . Targets Rammed . | . . . Kicked . | . . . Crushed . | . . . Highest Temperature 99 | 27 99 72 Average Temperature 29 | 11 31 31 Received Heat Transfer 185 | . 108 77 Siege Activations . | . . . Robots Corrupted . | . . . Combat Hostiles . | . . . Parts Fried . | . . . Impact Corruptions . | . . . Robots Melted . | . . . Combat Hostiles . | . . . Parts Melted 2 | 2 . . Heat Transferred 740 | 259 481 . Parts Sabotaged . | . . . Parts Stolen . | . . . Parts Stripped . | . . . Power Chain Reactions . | . . . Alert | -11 -10 -10 ------- Run | Yrd Mat Min Peak Influence 172 | 10 172 51 Initial 6 | . 6 1 Average 31 | 3 40 21 Maximum Alert Level . | . . . Low Security (%) 100 | 100 100 100 Level 1 . | . . . Level 2 . | . . . Level 3 . | . . . Level 4 . | . . . Level 5 . | . . . High Security . | . . . Max Security . | . . . Squads Dispatched 1 | . 1 . Investigation . | . . . Extermination . | . . . Reinforcement 1 | . 1 . Assault . | . . . Garrison . | . . . Intercept . | . . . Searches Triggered . | . . . Construction Impeded . | . . . Haulers Reinforced . | . . . Active Scanning Responses . | . . . Cargo Convoy Interrupts . | . . . Stealth | -11 -10 -10 --------- Run | Yrd Mat Min Distress Signals 2 | . 2 . Communications Jammed . | . . . Distress Signals . | . . . Times Spotted 38 | . 15 23 Peak Tracking Total 7 | . 2 7 Tactical Retreats 2 | . 1 1 Traps | -11 -10 -10 ------- Run | Yrd Mat Min Traps Triggered . | . . . Indirectly . | . . . Trap Hack Attempts . | . . . Triggered . | . . . Disarmed . | . . . Reprogrammed . | . . . Reused . | . . . Traps Extracted . | . . . Installed . | . . . Triggered . | . . . Machines | -11 -10 -10 ---------- Run | Yrd Mat Min Machines Disabled 3 | . 3 . Max in Single Turn 1 | . 1 . Machines Repaired . | . . . Machines Dismantled . | . . . Machines Sabotaged . | . . . Overloaded Fab Kills . | . . . Hacking | -11 -10 -10 --------- Run | Yrd Mat Min Machines Accessed 9 | . 8 1 Terminals 6 | . 6 . Fabricators . | . . . Repair Stations 1 | . 1 . Recycling Units 1 | . 1 . Scanalyzers . | . . . Garrison Access . | . . . Total Hacks 25 | . 24 1 Successful 15 | . 14 1 Failed 10 | . 10 . Catastrophic . | . . . Database Lockouts . | . . . Manual . | . . . Terminals 17 | . 17 . Fabricators . | . . . Repair Stations 3 | . 3 . Recycling Units 4 | . 4 . Scanalyzers . | . . . Garrison Access . | . . . Terminal Hacks 10 | . 9 1 Prototype ID Bank 1 | . 1 . Open Door 1 | . . 1 Branch Access Points 1 | . 1 . Emergency Access Points 1 | . 1 . Locate Traps 2 | . 2 . Dispatch Records 1 | . 1 . Transport Status 1 | . 1 . Hauler Manifests 1 | . 1 . Zone Layout 1 | . 1 . Fabricator Hacks . | . . . Repair Station Hacks 1 | . 1 . Scan Component 1 | . 1 . Recycling Unit Hacks 4 | . 4 . Recycle Component 1 | . 1 . Process 1 | . 1 . Retrieve Matter 1 | . 1 . Retrieve Components 1 | . 1 . Scanalyzer . | . . . Garrison Access Hacks . | . . . Unauthorized Hacks . | . . . Terminals . | . . . Fabricators . | . . . Repair Stations . | . . . Recycling Units . | . . . Scanalyzers . | . . . Garrison Access . | . . . Data Cores Recovered . | . . . Used . | . . . Hacking Detections 7 | . 7 . Full Trace Events . | . . . Feedback Events . | . . . Feedback Blocked . | . . . Robot Schematics Acquired . | . . . Robots Built . | . . . Authchips . | . . . Time . | . . . Total Robot Build Rating . | . . . Part Schematics Acquired . | . . . Parts Built . | . . . Authchips . | . . . Time . | . . . Total Part Build Rating . | . . . Parts Repaired . | . . . Time . | . . . Parts Recycled 1 | . 1 . Recycled Matter 75 | . 75 . Retrieved Matter 75 | . 75 . Retrieved Components 5 | . 5 . Parts Scanalyzed . | . . . Part Schematics Acquired . | . . . Parts Damaged . | . . . Bothacking | -11 -10 -10 ------------ Run | Yrd Mat Min Used RIF Installer . | . . . Robots Hacked . | . . . Non-combat . | . . . Combat . | . . . Robot Hacks Applied . | . . . Relay Couplers Released . | . . . Fabnet Peak Effective % . | . . . Robots Rewired . | . . . Allies Hacked . | . . . Hacks Repelled . | . . . Allies | -11 -10 -10 -------- Run | Yrd Mat Min Total Allies . | . . . Largest Group . | . . . Highest-Rated Group . | . . . Highest-Rated Ally . | . . . Total Orders . | . . . Ally Attacks . | . . . Total Damage . | . . . Kills . | . . . Allies Corrupted . | . . . Allies Melted . | . . . Intel | -11 -10 -10 ------- Run | Yrd Mat Min Robot Analysis Total . | . . . Derelict Logs Recovered 3 | . . 3 Drone Launches . | . . . Drone Recoveries . | . . . Exploration | -11 -10 -10 ------------- Run | Yrd Mat Min Turns Passed 2459 | 157 1474 828 Spaces Moved 1463 | 112 965 386 Core 29 | 25 . 4 Treads . | . . . Legs 1434 | 87 965 382 Wheels . | . . . Hover . | . . . Flight . | . . . Fastest Speed 50 | 50 120 120 Average Speed 120 | 104 122 121 Slowest Speed 200 | 120 190 200 Overloaded Moves . | . . . Propulsion Burnouts . | . . . Robots Hopped . | . . . Cave-ins Triggered . | . . . Exploration Rate (%) 56 | 8 97 64 Regions Visited 2 Branch Regions 1 Pre-discovered Areas . | . . . Known Exits Taken 1 | . 1 . Unknown Exits Taken 1 | 1 . . Scrap Searched 1 | . . 1 Spaces Dug . | . . . Terrain Destroyed 33 | . . 33 Melee . | . . . Projectile . | . . . AOE 33 | . . 33 Terrain Rammed . | . . . Walls Destroyed . | . . . Machines Disabled . | . . . Actions | -11 -10 -10 --------- Run | Yrd Mat Min Total 2009 | 137 1158 714 Wait 398 | . 115 283 Move 1461 | 111 964 386 Hop . | . . . Pick Up 33 | 12 12 9 Fast Attach 3 | 1 2 . Attach 11 | 6 3 2 Detach . | . . . Swap 6 | . 2 4 Drop 16 | . 8 8 Fire 73 | 7 52 14 Melee 8 | . . 8 Ram . | . . . Kick . | . . . Crush . | . . . Escape Stasis . | . . . Rewire . | . . . Trap . | . . . Miscellaneous . | . . . Route ------- -11/Scrapyard -10/Materials (discovered 5 exits: *Mat x3 / *Min x2) -10/Mines (discovered 2 exits: *Mat / *Exi) History --------- Turn | Location | Event 16 | -11/Scrapyard | Discovered new exit (range 16) 158 | -11/Scrapyard | Entered Materials 301 | -10/Materials | Discovered new exit (range 13) 302 | -10/Materials | Build established: Mutant 467 | -10/Materials | Discovered new exit (range 11) 812 | -10/Materials | Discovered new exit (range 6) 986 | -10/Materials | Discovered new exit (range 14) 1353 | -10/Materials | Discovered new exit (range 11) 1401 | -10/Materials | Identified exit to Materials 1481 | -10/Materials | Identified exit to Mines 1632 | -10/Materials | Entered Mines 1648 | -10/Mines | Met a Derelict bent on vengeance 1735 | -10/Mines | Deemed a non-threat by the Exiles lab entrance 1735 | -10/Mines | Discovered new exit (range 5) 1739 | -10/Mines | Identified exit to Exiles 1805 | -10/Mines | Discovered exit to Materials (range 11) 1835 | -10/Mines | Met a Derelict who couldn't figure out how to use a Trap Extractor 1844 | -10/Mines | Learned Materials emergency access door positions 1846 | -10/Mines | Learned Materials security intel 2381 | -10/Mines | Assembled infested the area 2419 | -10/Mines | Core integrity fell below 50% 2426 | -10/Mines | Core integrity fell below 20% 2450 | -10/Mines | Destroyed 17 combat bots 2460 | -10/Mines | Lost 5 parts (1p3n1w) 2460 | -10/Mines | Destroyed by D-53 Grenadier with Mini Grenade Launcher Last Messages --------------- as-97665 destroyed. as-15303 destroyed. as-22455 destroyed. as-43005 knocked back. Lgt. Cannon destroyed. Destroyed Asb. Hover Unit. as-83947 destroyed. The unstable cave ceiling collapses. Aluminum Leg destroyed. as-88928 sneak attacks. T-07 Excavator destroyed. Destroyed Asb. Hover Unit. as-88928 destroyed. [Achievement: Exterminator] as-15980 destroyed. Aluminum Leg destroyed. as-51590 destroyed. The unstable cave ceiling collapses. Acquired 10 matter. The unstable cave ceiling collapses. Map ----- +----------------------------------------------------+ | | | | | | | | | | | | | | | | | | | | | | | ?????????????????????????????????????????????????? | | ?????????????????????????????????????#######?????? | | ?????????????????????????????????##### ######? | | ????????????????????????????????## ## | | ????????????????????????????????# # | | ???????????????????????????????## ###### # | | ??????????????????????????????## ####????## ## | | ????????? ??????????????????## ###?????????###? | | ????????? ????########?? ##????????????? | | ???????? % ### =### # ##???????????? | | ???????? % # % # ?# #???????????? | | ??????? % # ## #??#####?????? | | ????????# % # =% #??# ####??? | | ?????????# ##?# ##?? | | ?????????# @ # ##?# ##? | | ?????????# d d #?## ## | | ?????????## ## ##### #??## | | ??????????### ##?# ##?## ##??# | | ????????????## # ####???##??# ##?# | | ?????????????# ###???????????# """ #?## | | ?????????????## ??????????????## """ #### ### | | ??????????????##????????????????# """ #?### | | ????????????????????????????????## ##### #??# | | ?????????????????????????????????## ##???# #### | | ??????????????????????????????????# #????# | | ??????????????????????????????????## #????# ##### | | ???????????????????????????????????# ###### ##### | | ???????????????????????????????????## # | | ????????????????????????????????????# # | | ????????????????????????????????????########### # | | ??????????????????????????????????????????????# # | | ??????????????????????????????????????????????# # | | ??????????????????????????????????????????????# # | | ??????????????????????????????????????????????# # | | ?????????????????????????????????############## # | | ?????????????????????????????????# # | | ?????????????????????????????????# # | | ?????????????????????????????????# ############## | | ??????????????#??????????????????# #????????????? | +----------------------------------------------------+ Best States ------------- Heat Dissipation 25 Energy Generation 14 Energy Capacity 160 Matter Stores 300 Matter Capacity 300 Sight Range 16 Terrain Scan Density 10 Evasion (%) 55 Item Schematics ----------------- None Robot Schematics ------------------ None Fabricated ------------ Nothing Alien Tech Used ----------------- None Achievements -------------- Exterminator Quick And Dirty Challenges ------------ None Game ------ Seed MiniEfficiencyInterrupter Manual? 0 Play Time 00:30:45 Cumulative 6.4 hours Start 2024.05.19 @ 12:49:05 End 2024.05.19 @ 16:23:23 Sessions 1 Manual Loads 0 Difficulty Rogue Special Mode None Game No. 6 Rogue 6 Adventurer 0 Explorer 0 Win Type - Total 0 Types 0/0/0/0/0/0/0/0/0 Lore% 3 Gallery% 7 Achievement% 10 Wizard Run 0 Options --------- Layout 1 ASCII 0 Keyboard 0 Movement Mouse Keybinds 0 Fullscreen 1 Font 24/Smallcaps Map View 50x35 Zoom Use 0% Tactical HUD 0 Map Filters NONE Filters NONE Steam 1 RUN: a8462732-7af0-41ed-a880-1c4beeb0f6ed